Workbook

Sheet Example
C1: Machinery Cost Calculator
C2: Ag Decision Maker -- Iowa State University Extension
C3: For more Information, see Information File A3-29 Estimating Farm Machinery Costs.
C5: Place the cursor over cells with red triangles to read comments.
C6: This example shows how you must enter the annual use and field capacity for a self-propelled implement.
C8: Input Data | D8: Power Unit | E8: 1 | F8: Implement or Attachment
C10: Type of machine | D10: 5 | F10: 1
C11: Current list price of comparable machine (new) | D11: 375000
C12: Current value of machine | D12: 300000
C13: Accumulated hours of use | D13: 500 | E13: hours
C14: Current age | D14: 2 | E14: years | G14: years
C15: Years of ownership remaining | D15: 8 | E15: years | G15: years
C16: Interest rate | D16: 0.07 | E16: % | G16: %
C17: Annual use | D17: 250 | E17: hours | F17: 2500 | G17: acres or tons
C18: Field capacity in acres or tons per hour | F18: 13 | G18: /hour
C19: Engine horsepower | D19: 300 | E19: hp
C20: Price of diesel fuel | D20: 2 | E20: /gal.
C21: Wage or labor value for machine operator | D21: 20 | E21: /hour
C22: Annual repair and maintenance costs
C23: (leave blank to use calculator estimate)
D24: Power Unit Alone | F24: Implement or Attachment | H24: Combination
D25: =IF(D14>0,D11*((VLOOKUP(D10,Data!C5:J14,6)-VLOOKUP(D10,Data!C5:J14,7)*((D14)^0.5)-VLOOKUP(D10,Data!C5:J14,8)*(((D13)/(D14))^0.5))^2),D12) -> 224799.7526 | F25: =IF(F14>0,F11*((VLOOKUP(F10,Data!C16:J44,6)-VLOOKUP(F10,Data!C16:J44,7)*((F14)^0.5)-VLOOKUP(F10,Data!C16:J44,8)*(((F17)/(F18))^0.5))^2),F12) -> 0 | H25: Includes power unit costs only for the hours used with this implement or attachment.
C26: Estimated value at end of the ownership period | D26: =IF(D15>0,D11*((VLOOKUP(D10,Data!C5:J14,6)-VLOOKUP(D10,Data!C5:J14,7)*((D14+D15)^0.5)-VLOOKUP(D10,Data!C5:J14,8)*(((D13+D17*D15)/(D14+D15))^0.5))^2),0)*IF(D25>0,D12/D25,1) -> 118541.6862 | F26: =IF(F$18>0,F$11*((VLOOKUP(F$10,Data!C$16:J$44,6)-VLOOKUP(F$10,Data!C$16:J$44,7)*((F$15+F$14)^0.5)-VLOOKUP(F$10,Data!C$16:J$44,8)*((F$17/F$18)^0.5))^2),0)*IF(F25>0,F12/F25,1) -> 0
C28: Ownership Costs | D28: $/year | E28: $/acre | F28: $/year | G28: $/acre | H28: $/year | I28: $/acre
C29: Capital recovery (interest and depreciation) | D29: =IF(D15>0,PMT(D16,D15,-(D12-D26))+D16*D26,D15) -> 38686.33583 | E29: =IF(D17*F18>0,D29/D$17/F$18,0) -> 11.90348795 | F29: =IF(F15,PMT(F16,F15,-(F12-F26))+F16*F26,0) -> 0 | G29: =IF(F$17>0,F29/F17,0) -> 0 | H29: =IF(F$18*D$17>0,D29*(F$17/F$18)/D$17+F29,0) -> 29758.71987 | I29: =E29+G29 -> 11.90348795
C30: Taxes, insurance and housing | D30: =0.01*D12 -> 3000 | E30: =IF(D17*F18>0,D30/D$17/F$18,0) -> 0.9230769231 | F30: =0.01*F12 -> 0 | G30: =IF(F$17>0,F30/F17,0) -> 0 | H30: =IF(F$18*D$17>0,D30*(F$17/F$18)/D$17+F30,0) -> 2307.692308 | I30: =E30+G30 -> 0.9230769231
C31: Total ownership cost | D31: =SUM(D29:D30) -> 41686.33583 | E31: =SUM(E29:E30) -> 12.82656487 | F31: =SUM(F29:F30) -> 0 | G31: =SUM(G29:G30) -> 0 | H31: =SUM(H29:H30) -> 32066.41218 | I31: =E31+G31 -> 12.82656487
C33: Operating Costs
C34: Repair cost | D34: =IF(D22>0,D22,IF(D15>0,MIN(D11*VLOOKUP($D10,Data!$C5:$J14,3)*((((VLOOKUP($D10,Data!$C5:$J14,5)*0.001)^VLOOKUP($D10,Data!$C5:$J14,4))-((VLOOKUP($D10,Data!$C5:$J14,5)-D17)*0.001)^VLOOKUP($D10,Data!$C5:$J14,4))),D11*VLOOKUP($D10,Data!$C5:$J14,3)*((((D13+D15*D17)*0.001)^VLOOKUP($D10,Data!$C5:$J14,4))-((D13*0.001)^VLOOKUP($D10,Data!$C4:$J14,4)))/D15),0)) -> 3101.475313 | E34: =IF(D$17*F$18>0,D34/D$17/F$18,0) -> 0.9543000962 | F34: =IF(F22>0,F22,IF(F15*F18>0,MIN(F11*VLOOKUP($F10,Data!$C16:$J44,3)*((((VLOOKUP($F10,Data!$C16:$J44,5)*0.001)^VLOOKUP($F10,Data!$C16:$J44,4))-((VLOOKUP($F10,Data!$C16:$J44,5)-F17/F18)*0.001)^VLOOKUP($F10,Data!$C16:$J44,4))),F11*VLOOKUP($F10,Data!$C16:$J44,3)*(((((F14+F15)*(F17/F18))*0.001)^VLOOKUP($F10,Data!$C16:$J44,4))-(((F14*F17/F18)*0.001)^VLOOKUP($F10,Data!$C16:$J44,4)))/F15),0)) -> 0 | G34: =IF(F$17>0,F34/F17,0) -> 0 | H34: =IF(F$18*D$17>0,D34*(F$17/F$18)/D$17+F34,0) -> 2385.750241 | I34: =E34+G34 -> 0.9543000962
C35: Fuel and lubrication cost | D35: =0.044*D19*D20*1.15*D17 -> 7590 | E35: =IF(D$17*F$18>0,D35/D$17/F$18,0) -> 2.335384615 | H35: =IF(F$18*D$17>0,D35*(F$17/F$18)/D$17+F35,0) -> 5838.461538 | I35: =E35+G35 -> 2.335384615
C36: Labor cost | D36: =1.1*D21*D17 -> 5500 | E36: =IF(D$17*F$18>0,D36/D$17/F$18,0) -> 1.692307692 | H36: =IF(F$18*D$17>0,D36*(F$17/F$18)/D$17+F36,0) -> 4230.769231 | I36: =E36+G36 -> 1.692307692
C37: Total operating cost | D37: =SUM(D34:D36) -> 16191.47531 | E37: =SUM(E34:E36) -> 4.981992404 | F37: =SUM(F34:F36) -> 0 | G37: =SUM(G34:G36) -> 0 | H37: =SUM(H34:H36) -> 12454.98101 | I37: =E37+G37 -> 4.981992404
C39: Total Ownership plus Operating Costs | D39: =D31+D37 -> 57877.81115 | E39: 17.80855728 | F39: 0 | G39: 0 | H39: 44521.39319 | I39: 17.80855728
C42: Version 1.2
C43: Author: William Edwards
C44: Date Printed:
C45: =TODAY() -> 2009-04-22
C47: . . . and justice for all
C48: The U.S. Department of Agriculture (USDA) prohibits discrimination in all its programs and activities on the basis of race, color, national origin, gender, religion, age, disability, political beliefs, sexual orientation, and marital or family status. (Not all prohibited bases apply to all programs.) Many materials can be made available in alternative formats for ADA clients. To file a complaint of discrimination, write USDA, Office of Civil Rights, Room 326-W, Whitten Building, 14th and Independence Avenue, SW, Washington, DC 20250-9410 or call 202-720-5964.
C50: Issued in furtherance of Cooperative Extension work, Acts of May 8 and June 30, 1914, in cooperation with the U.S. Department of Agriculture. Jack M. Payne, director, Cooperative Extension Service, Iowa State University of Science and Technology, Ames, Iowa.

Sheet Blank
C1: Machinery Cost Calculator
C2: Ag Decision Maker -- Iowa State University Extension (with additional features written by Leroy Stodick.)
C3: For more Information, see Information File A3-29 Estimating Farm Machinery Costs.
C5: Place the cursor over cells with red triangles to read comments.
C6: Enter your input values in shaded cells.
C7: If you click Add Operation, your output will be saved in the MachComp tab. This way you can save data for many machines.
C9: Input Data | D9: Power Unit | E9: 1 | F9: Implement or Attachment
C11: Type of machine | D11: 5 | F11: 7
C12: Current list price of comparable machine (new) | D12: 160000
C13: Current value of machine | D13: 125000
C14: Accumulated hours of use | D14: 2500 | E14: hours
C15: Current age | D15: 4 | E15: years | G15: years
C16: Years of ownership remaining | D16: 15 | E16: years | G16: years
C17: Interest rate | D17: 0.07 | E17: % | G17: %
C18: Annual use | D18: 600 | E18: hours | F18: 2000 | G18: acres or tons
C19: Field capacity in acres or tons per hour | F19: 10 | G19: /hour
C20: Engine horsepower | D20: 400 | E20: hp
C21: Price of diesel fuel | D21: 3 | E21: /gal.
C22: Wage or labor value for machine operator | D22: 15 | E22: /hour
C23: Annual repair and maintenance costs
C24: (leave blank to use calculator estimate)
D25: Power Unit Alone | F25: Implement or Attachment | H25: Combination
D26: =IF(D15>0,D12*((VLOOKUP(D11,Data!C5:J14,6)-VLOOKUP(D11,Data!C5:J14,7)*((D15)^0.5)-VLOOKUP(D11,Data!C5:J14,8)*(((D14)/(D15))^0.5))^2),D13) -> 58622.0944 | F26: =IF(F15>0,F12*((VLOOKUP(F11,Data!C16:J44,6)-VLOOKUP(F11,Data!C16:J44,7)*((F15)^0.5)-VLOOKUP(F11,Data!C16:J44,8)*(((F18)/(F19))^0.5))^2),F13) -> 0 | H26: Includes power unit costs only for the hours used with this implement or attachment.
C27: Estimated value at end of the ownership period | D27: =IF(D16>0,D12*((VLOOKUP(D11,Data!C5:J14,6)-VLOOKUP(D11,Data!C5:J14,7)*((D15+D16)^0.5)-VLOOKUP(D11,Data!C5:J14,8)*(((D14+D18*D16)/(D15+D16))^0.5))^2),0)*IF(D26>0,D13/D26,1) -> 16573.33154 | F27: =IF(F$19>0,F$12*((VLOOKUP(F$11,Data!C$16:J$44,6)-VLOOKUP(F$11,Data!C$16:J$44,7)*((F$16+F$15)^0.5)-VLOOKUP(F$11,Data!C$16:J$44,8)*((F$18/F$19)^0.5))^2),0)*IF(F26>0,F13/F26,1) -> 0
C29: Ownership Costs | D29: $/year | E29: $/acre | F29: $/year | G29: $/acre | H29: $/year | I29: $/acre
C30: Capital recovery (interest and depreciation) | D30: =IF(D16>0,PMT(D17,D16,-(D13-D27))+D17*D27,D16) -> 13064.79858 | E30: =IF(D18*F19>0,D30/D$18/F$19,0) -> 2.17746643 | F30: =IF(F16,PMT(F17,F16,-(F13-F27))+F17*F27,0) -> 0 | G30: =IF(F$18>0,F30/F18,0) -> 0 | H30: =IF(F$19*D$18>0,D30*(F$18/F$19)/D$18+F30,0) -> 4354.93286 | I30: =E30+G30 -> 2.17746643
C31: Taxes, insurance and housing | D31: =0.01*D13 -> 1250 | E31: =IF(D18*F19>0,D31/D$18/F$19,0) -> 0.2083333333 | F31: =0.01*F13 -> 0 | G31: =IF(F$18>0,F31/F18,0) -> 0 | H31: =IF(F$19*D$18>0,D31*(F$18/F$19)/D$18+F31,0) -> 416.6666667 | I31: =E31+G31 -> 0.2083333333
C32: Total ownership cost | D32: =SUM(D30:D31) -> 14314.79858 | E32: =SUM(E30:E31) -> 2.385799763 | F32: =SUM(F30:F31) -> 0 | G32: =SUM(G30:G31) -> 0 | H32: =SUM(H30:H31) -> 4771.599526 | I32: =E32+G32 -> 2.385799763
C34: Operating Costs
C35: Repair cost | D35: =IF(D23>0,D23,IF(D16>0,MIN(D12*VLOOKUP($D11,Data!$C5:$J14,3)*((((VLOOKUP($D11,Data!$C5:$J14,5)*0.001)^VLOOKUP($D11,Data!$C5:$J14,4))-((VLOOKUP($D11,Data!$C5:$J14,5)-D18)*0.001)^VLOOKUP($D11,Data!$C5:$J14,4))),D12*VLOOKUP($D11,Data!$C5:$J14,3)*((((D14+D16*D18)*0.001)^VLOOKUP($D11,Data!$C5:$J14,4))-((D14*0.001)^VLOOKUP($D11,Data!$C4:$J14,4)))/D16),0)) -> 6012.970296 | E35: =IF(D$18*F$19>0,D35/D$18/F$19,0) -> 1.002161716 | F35: =IF(F23>0,F23,IF(F16*F19>0,MIN(F12*VLOOKUP($F11,Data!$C16:$J44,3)*((((VLOOKUP($F11,Data!$C16:$J44,5)*0.001)^VLOOKUP($F11,Data!$C16:$J44,4))-((VLOOKUP($F11,Data!$C16:$J44,5)-F18/F19)*0.001)^VLOOKUP($F11,Data!$C16:$J44,4))),F12*VLOOKUP($F11,Data!$C16:$J44,3)*(((((F15+F16)*(F18/F19))*0.001)^VLOOKUP($F11,Data!$C16:$J44,4))-(((F15*F18/F19)*0.001)^VLOOKUP($F11,Data!$C16:$J44,4)))/F16),0)) -> 0 | G35: =IF(F$18>0,F35/F18,0) -> 0 | H35: =IF(F$19*D$18>0,D35*(F$18/F$19)/D$18+F35,0) -> 2004.323432 | I35: =E35+G35 -> 1.002161716
C36: Fuel and lubrication cost | D36: =0.044*D20*D21*1.15*D18 -> 36432 | E36: =IF(D$18*F$19>0,D36/D$18/F$19,0) -> 6.072 | H36: =IF(F$19*D$18>0,D36*(F$18/F$19)/D$18+F36,0) -> 12144 | I36: =E36+G36 -> 6.072
C37: Labor cost | D37: =1.1*D22*D18 -> 9900 | E37: =IF(D$18*F$19>0,D37/D$18/F$19,0) -> 1.65 | H37: =IF(F$19*D$18>0,D37*(F$18/F$19)/D$18+F37,0) -> 3300 | I37: =E37+G37 -> 1.65
C38: Total operating cost | D38: =SUM(D35:D37) -> 52344.9703 | E38: =SUM(E35:E37) -> 8.724161716 | F38: =SUM(F35:F37) -> 0 | G38: =SUM(G35:G37) -> 0 | H38: =SUM(H35:H37) -> 17448.32343 | I38: =E38+Blank!G38 -> 8.724161716
C40: Total Ownership plus Operating Costs | D40: =D32+D38 -> 66659.76887 | E40: 11.10996148 | F40: 0 | G40: 0 | H40: 22219.92296 | I40: 11.10996148 | K40: =5280*8.25 -> 43560
C43: Version 1.2
C44: Author: William Edwards
C45: Date Printed:
C46: =TODAY() -> 2009-04-22
C48: . . . and justice for all
C49: The U.S. Department of Agriculture (USDA) prohibits discrimination in all its programs and activities on the basis of race, color, national origin, gender, religion, age, disability, political beliefs, sexual orientation, and marital or family status. (Not all prohibited bases apply to all programs.) Many materials can be made available in alternative formats for ADA clients. To file a complaint of discrimination, write USDA, Office of Civil Rights, Room 326-W, Whitten Building, 14th and Independence Avenue, SW, Washington, DC 20250-9410 or call 202-720-5964.
C51: Issued in furtherance of Cooperative Extension work, Acts of May 8 and June 30, 1914, in cooperation with the U.S. Department of Agriculture. Jack M. Payne, director, Cooperative Extension Service, Iowa State University of Science and Technology, Ames, Iowa.

Sheet MachComp
A1: Machinery Complement
A3: Totals | D3: =Table1[[#Totals],[Repair]] -> 4.248229628 | E3: =Table1[[#Totals],[Fuel & Lube]] -> 14.168 | F3: =Table1[[#Totals],[Labor]] -> 3.85 | G3: =Table1[[#Totals],[Capital Recovery]] -> 5.940330534 | H3: =Table1[[#Totals],[THI]] -> 0.6360361486
B5: Power Unit | C5: Implement | D5: Repair | E5: Fuel & Lube | F5: Labor | G5: Capital Recovery | H5: THI
D6: 1.002161716 | E6: 6.072 | F6: 1.65 | G6: 2.17746643 | H6: 0.2083333333
B7: Tractor 80-150 hp, 2wd | C7: Roller, mulcher | D7: 1.452062749 | E7: 4.048 | F7: 1.1 | G7: 1.923306116 | H7: 0.2138514076
B8: Tractor, 4-wheel drive | C8: Moldboard plow | D8: 1.794005163 | E8: 4.048 | F8: 1.1 | G8: 1.839557988 | H8: 0.2138514076
B9: Total | D9: =SUBTOTAL(109,[Repair]) -> 4.248229628 | E9: =SUBTOTAL(109,[Fuel & Lube]) -> 14.168 | F9: =SUBTOTAL(109,[Labor]) -> 3.85 | G9: =SUBTOTAL(109,[Capital Recovery]) -> 5.940330534 | H9: =SUBTOTAL(109,[THI]) -> 0.6360361486

Sheet Data
C1: Machinery Type Numbers and Constant Values
G2: Wearout
E3: Repair Cost Factors | G3: Hours | H3: Remaining value factors
C4: Type no. | D4: Description | E4: RC1 | F4: RC2 | G4: HWOL | H4: intercept | I4: agecoeff | J4: hrscoeff
C5: 1 | D5: Tractor, under 80 hp, 2wd | E5: 0.007 | F5: 2 | G5: 12000 | H5: 0.981 | I5: 0.093 | J5: 0.0058
C6: 2 | D6: Tractor 80-150 hp, 2wd | E6: 0.007 | F6: 2 | G6: 12000 | H6: 0.9421 | I6: 0.0997 | J6: 0.0008
C7: 3 | D7: Tractor over 150 hp, 2wd | E7: 0.007 | F7: 2 | G7: 16000 | H7: 0.9756 | I7: 0.1187 | J7: 0.0019
C8: 4 | D8: Tractor, 4-wheel drive | E8: 0.003 | F8: 2 | G8: 16000 | H8: 0.9756 | I8: 0.1187 | J8: 0.0019
C9: 5 | D9: Combine SP unit | E9: 0.01 | F9: 2.1 | G9: 3000 | H9: 1.1318 | I9: 0.1645 | J9: 0.0079
C10: 6 | D10: SP forage harvester | E10: 0.03 | F10: 2 | G10: 4000 | H10: 0.7911 | I10: 0.0913 | J10: 0
C11: 7 | D11: SP windrower | E11: 0.06 | F11: 2 | G11: 3000 | H11: 0.7557 | I11: 0.0672 | J11: 0
C12: 8 | D12: SP sprayer | E12: 0.1 | F12: 1.3 | G12: 1500 | H12: 0.8826 | I12: 0.0778 | J12: 0
C13: 9 | D13: Skid-steer loader | E13: 0.007 | F13: 2 | G13: 3000 | H13: 0.786 | I13: 0.063 | J13: 0.0033
C14: 10 | D14: SP cotton picker | E14: 0.11 | F14: 1.8 | G14: 3000 | H14: 1.1318 | I14: 0.1645 | J14: 0.0079
C16: 1 | D16: Moldboard plow | E16: 0.29 | F16: 1.8 | G16: 2000 | H16: 0.7382 | I16: 0.051 | J16: 0
C17: 2 | D17: Disk | E17: 0.18 | F17: 1.7 | G17: 2000 | H17: 0.8906 | I17: 0.1095 | J17: 0
C18: 3 | D18: Chisel plow, subsoiler | E18: 0.28 | F18: 1.4 | G18: 5000 | H18: 0.7382 | I18: 0.051 | J18: 0
C19: 4 | D19: Field cultivator | E19: 0.27 | F19: 1.4 | G19: 2000 | H19: 0.8906 | I19: 0.1095 | J19: 0
C20: 5 | D20: Harrow | E20: 0.27 | F20: 1.4 | G20: 2000 | H20: 0.8906 | I20: 0.1095 | J20: 0
C21: 6 | D21: Cultivator | E21: 0.17 | F21: 2.2 | G21: 2000 | H21: 0.8906 | I21: 0.1095 | J21: 0
C22: 7 | D22: Roller, mulcher | E22: 0.16 | F22: 1.3 | G22: 2000 | H22: 0.8906 | I22: 0.1095 | J22: 0
C23: 8 | D23: Rotary hoe | E23: 0.23 | F23: 1.4 | G23: 2000 | H23: 0.8906 | I23: 0.1095 | J23: 0
C24: 9 | D24: Rotary tiller | E24: 0.36 | F24: 2 | G24: 1500 | H24: 0.8906 | I24: 0.1095 | J24: 0
C25: 10 | D25: Planter,grain drill | E25: 0.32 | F25: 2.1 | G25: 1500 | H25: 0.8826 | I25: 0.0778 | J25: 0
C26: 11 | D26: Corn picker | E26: 0.05 | F26: 2.3 | G26: 2000 | H26: 1.1318 | I26: 0.1645 | J26: 0
C27: 12 | D27: Combine head | E27: 0.05 | F27: 2.3 | G27: 2000 | H27: 1.1318 | I27: 0.1645 | J27: 0.0079
C28: 13 | D28: Mower (sickle bar) | E28: 0.46 | F28: 1.7 | G28: 2000 | H28: 0.7557 | I28: 0.0672 | J28: 0
C29: 14 | D29: Mower (rotary) | E29: 0.44 | F29: 2 | H29: 0.7557 | I29: 0.0672 | J29: 0
C30: 15 | D30: Mower-conditioner | E30: 0.18 | F30: 1.6 | G30: 2500 | H30: 0.7557 | I30: 0.0672 | J30: 0
C31: 16 | D31: Windrower | E31: 0.18 | F31: 1.6 | G31: 2500 | H31: 0.7557 | I31: 0.0672 | J31: 0
C32: 17 | D32: Small square baler | E32: 0.23 | F32: 1.8 | G32: 2000 | H32: 0.8521 | I32: 0.1014 | J32: 0
C33: 18 | D33: Large square baler | E33: 0.1 | F33: 1.8 | H33: 0.8521 | I33: 0.1014 | J33: 0
C34: 19 | D34: Round baler | E34: 0.43 | F34: 1.8 | G34: 1500 | H34: 0.8521 | I34: 0.1014 | J34: 0
C35: 20 | D35: Rake | E35: 0.17 | F35: 1.4 | G35: 2500 | H35: 0.7911 | I35: 0.0913 | J35: 0
C36: 21 | D36: Forage harvester-pull | E36: 0.15 | F36: 1.6 | G36: 2500 | H36: 0.7911 | I36: 0.0913 | J36: 0
C37: 22 | D37: Sugar beet harvester | E37: 0.59 | F37: 1.3 | H37: 0.7911 | I37: 0.0913 | J37: 0
C38: 23 | D38: Potato harvester | E38: 0.19 | F38: 1.4 | H38: 0.7911 | I38: 0.0913 | J38: 0
C39: 24 | D39: Fert. spreader | E39: 0.63 | F39: 1.3 | G39: 1200 | H39: 0.8826 | I39: 0.0778 | J39: 0
C40: 25 | D40: Sprayer | E40: 0.41 | F40: 1.3 | G40: 1500 | H40: 0.8826 | I40: 0.0778 | J40: 0
C41: 26 | D41: Forage wagon | E41: 0.16 | F41: 1.6 | G41: 2000 | H41: 0.9427 | I41: 0.1111 | J41: 0
C42: 27 | D42: Grain wagon | E42: 0.19 | F42: 1.3 | G42: 3000 | H42: 0.9427 | I42: 0.1111 | J42: 0
C43: 28 | D43: Manure handling equipment | E43: 0.16 | F43: 1.6 | G43: 3000 | H43: 0.9427 | I43: 0.1111 | J43: 0
C44: 29 | D44: Feed grinders and mixers | E44: 0.015 | F44: 1.6 | G44: 3000 | H44: 0.9427 | I44: 0.1111 | J44: 0
D45: Source: American Society of Agricultural and Biological Engineers Standards
D46: Combine repair cost coefficients were adjusted based on recent survey data.
